[Event "46th GRE-chT Premier 2018"]
[Site "Rio Achaia"]
[Date "2018.07.10"]
[Round "1"]
[White "Kartsidima, Angeliki"]
[Black "Violakis, Anastasios"]
[Result "0-1"]
[ECO "A48"]
[WhiteElo "1317"]
[BlackElo "1255"]
[Annotator "NA"]
[PlyCount "112"]
[EventDate "2018.07.10"]
[EventType "team-tourn"]
[EventCountry "GRE"]
[SourceTitle "playchess.com"]
[Source "ChessBase"]
[SourceQuality "1"]
[TimeControl "40/5400+30:1800+30"]

1. d4 {[%emt 0:00:00]} Nf6 {[%emt 0:00:00]} 2. Nf3 {[%emt 0:00:02]} g6 {[%emt 0:00:06]} 3. e3 {[%emt 0:00:44]} Bg7 {[%emt 0:00:27]} 4. Bd3 {[%emt 0:02:08]} O-O {[%emt 0:01:01]} 5. Nbd2 {[%emt 0:02:44]} d6 {[%emt 0:01:02]} 6. O-O {[%emt 0:02:58]} Nbd7 {[%emt 0:01:19]} 7. c3 {[%emt 0:02:27]} c5 {[%emt 0:06:15]} 8. Re1 {[%emt 0:03:06]} b6 {[%emt 0:04:14]} 9. Qc2 {[%emt 0:11:09]} Bb7 {[%emt 0:00:40]} 10. Rb1 {[%emt 0:02:38]} Rc8 {[%emt 0:01:12]} 11. Qb3 {[%emt 0:03:09]} Re8 {[%emt 0:12:31]} 12. e4 {[%emt 0:06:03]} d5 {[%emt 0:07:42]} 13. exd5 {[%emt 0:09:05]} Bxd5 {[%emt 0:02:34]} 14. c4 {[%emt 0:02:02]} Bb7 {[%emt 0:00:21]} 15. d5 {[%emt 0:01:29]} Ng4 {[%emt 0:01:59]} 16. Ne4 {[%emt 0:05:28]} Nge5 {[%emt 0:06:33]} 17. Nxe5 {[%emt 0:03:40]} Nxe5 {[%emt 0:00:23]} 18. Ng3 {[%emt 0:04:12]} Nxd3 {[%emt 0:00:31]} 19. Qxd3 {[%emt 0:00:10]} Qd7 {[%emt 0:03:33]} 20. Qc2 {[%emt 0:03:39]} e6 {[%emt 0:03:30]} 21. dxe6 {[%emt 0:01:48]} Rxe6 {[%emt 0:00:56]} 22. Be3 {[%emt 0:04:13]} Qc6 {[%emt 0:01:16]} 23. f3 {[%emt 0:01:11]} Rce8 {[%emt 0:05:11]} 24. Bf2 {[%emt 0:02:43]} Rxe1+ {[%emt 0:01:56]} 25. Rxe1 {[%emt 0:00:18]} Rxe1+ {[%emt 0:00:15]} 26. Bxe1 {[%emt 0:00:12]} Qe6 {[%emt 0:01:29]} 27. Bf2 {[%emt 0:01:27]} Qe5 {[%emt 0:02:11]} 28. b3 {[%emt 0:01:38]} Qa1+ {[%emt 0:00:55]} 29. Nf1 {[%emt 0:00:18]} Bf6 {[%emt 0:05:37]} 30. Qd2 {[%emt 0:04:24]} Bc8 {[%emt 0:05:21]} 31. Be3 {[%emt 0:02:13]} Bf5 {[%emt 0:05:17]} 32. Kf2 {[%emt 0:08:28]} Bb1 {[%emt 0:02:26]} 33. a4 {[%emt 0:01:09]} Qa2 {[%emt 0:01:44]} 34. Ke2 {[%emt 0:02:00]} Qxb3 {[%emt 0:00:34]} 35. Qd7 {[%emt 0:03:19]} Qxc4+ {[%emt 0:00:28]} 36. Kf2 {[%emt 0:00:14]} Bd4 {[%emt 0:05:51]} 37. Qxa7 {[%emt 0:01:26]} Bd3 {[%emt 0:01:15]} 38. Bxd4 {[%emt 0:02:10]} Qxd4+ {[%emt 0:00:14]} 39. Ne3 {[%emt 0:00:30]} Bc2 {[%emt 0:01:49]} 40. Qb8+ {[%emt 0:00:00]} Kg7 {[%emt 0:00:00]} 41. Qe8 {[%emt 0:05:54]} Bxa4 {[%emt 0:01:16]} 42. Qe7 {[%emt 0:00:57]} b5 {[%emt 0:00:46]} 43. Kg3 {[%emt 0:01:26]} b4 {[%emt 0:01:33]} 44. h4 {[%emt 0:09:43]} h5 {[%emt 0:02:02]} 45. Qg5 {[%emt 0:01:26]} Bd7 {[%emt 0:03:02]} 46. Nd5 {[%emt 0:01:05]} f6 {[%emt 0:01:07]} 47. Nxf6 {[%emt 0:05:01]} Qxf6 {[%emt 0:00:21]} 48. Qxc5 {[%emt 0:00:18]} b3 {[%emt 0:00:46]} 49. Qc7 {[%emt 0:01:21]} Qf7 {[%emt 0:01:13]} 50. Qe5+ {[%emt 0:00:52]} Kh7 {[%emt 0:00:15]} 51. Qb2 {[%emt 0:00:22]} Bf5 {[%emt 0:02:05]} 52. Qc3 {[%emt 0:00:52]} Bc2 {[%emt 0:01:03]} 53. Qb2 {[%emt 0:00:34]} Qg7 {[%emt 0:00:16]} 54. Qc1 {[%emt 0:00:25]} Qc3 {[%emt 0:01:00]} 55. Qa3 {[%emt 0:00:49]} Qe5+ {[%emt 0:00:31]} 56. Kh3 {[%emt 0:00:49]} b2 {[%emt 0:00:45]} 0-1

[Event "46th GRE-chT Premier 2018"]
[Site "Rio Achaia"]
[Date "2018.07.10"]
[Round "1"]
[White "Batzoli, Maria"]
[Black "Bellou, Nazareta"]
[Result "0-1"]
[ECO "B40"]
[WhiteElo "1312"]
[BlackElo "1211"]
[Annotator "NA"]
[PlyCount "42"]
[EventDate "2018.07.10"]
[EventType "team-tourn"]
[EventCountry "GRE"]
[SourceTitle "playchess.com"]
[Source "ChessBase"]
[SourceQuality "1"]
[TimeControl "40/5400+30:1800+30"]

1. e4 {[%emt 0:00:00]} c5 {[%emt 0:00:00]} 2. Nf3 {[%emt 0:00:00]} e6 {[%emt 0:00:00]} 3. c3 {[%emt 0:00:00]} d5 {[%emt 0:01:22]} 4. exd5 {[%emt 0:00:17]} Qxd5 {[%emt 0:01:36]} 5. d4 {[%emt 0:00:19]} Nc6 {[%emt 0:01:39]} 6. Be3 {[%emt 0:03:49]} Nf6 {[%emt 0:02:24]} 7. Bb5 {[%emt 0:02:28]} Be7 {[%emt 0:07:43]} 8. O-O {[%emt 0:00:46]} O-O {[%emt 0:00:15]} 9. dxc5 {[%emt 0:03:47]} Qxd1 {[%emt 0:07:02]} 10. Rxd1 {[%emt 0:00:16]} Nd5 {[%emt 0:01:30]} 11. Bd4 {[%emt 0:07:37]} f6 {[%emt 0:08:47]} 12. b4 {[%emt 0:21:38]} Rd8 {[%emt 0:07:19]} 13. Be3 {[%emt 0:19:57]} a5 {[%emt 0:04:51]} 14. Bxc6 {[%emt 0:04:13]} bxc6 {[%emt 0:00:15]} 15. Nbd2 {[%emt 0:10:46]} Nxc3 {[%emt 0:02:35]} 16. Re1 {[%emt 0:00:08]} axb4 {[%emt 0:01:07]} 17. Nd4 {[%emt 0:00:39]} Bxc5 {[%emt 0:09:19]} 18. N2b3 {[%emt 0:06:40]} Bxd4 {[%emt 0:01:40]} 19. Nxd4 {[%emt 0:00:29]} Ra6 {[%emt 0:05:53]} 20. Nc2 {[%emt 0:03:07]} Nxa2 {[%emt 0:14:54]} 21. Nxb4 {[%emt 0:01:04]} Nxb4 {[%emt 0:00:26]} 0-1

[Event "46th GRE-chT Premier 2018"]
[Site "Rio Achaia"]
[Date "2018.07.10"]
[Round "1"]
[White "Stathatos, Alexandros"]
[Black "Georgiadis, Anastasios"]
[Result "1-0"]
[ECO "B40"]
[WhiteElo "1311"]
[BlackElo "1184"]
[Annotator "NA"]
[PlyCount "65"]
[EventDate "2018.07.10"]
[EventType "team-tourn"]
[EventCountry "GRE"]
[SourceTitle "playchess.com"]
[Source "ChessBase"]
[SourceQuality "1"]
[TimeControl "40/5400+30:1800+30"]

1. e4 {[%emt 0:00:00]} c5 {[%emt 0:00:00]} 2. Nf3 {[%emt 0:00:00]} e6 {[%emt 0:01:19]} 3. d4 {[%emt 0:00:00]} cxd4 {[%emt 0:00:23]} 4. Nxd4 {[%emt 0:00:00]} Nf6 {[%emt 0:01:08]} 5. Bd3 {[%emt 0:01:05]} Nc6 {[%emt 0:01:50]} 6. Nb3 {[%emt 0:00:39]} Be7 {[%emt 0:02:43]} 7. O-O {[%emt 0:02:19]} O-O {[%emt 0:01:59]} 8. f4 {[%emt 0:02:15]} d5 {[%emt 0:04:22]} 9. e5 {[%emt 0:01:50]} Nd7 {[%emt 0:01:09]} 10. Be3 {[%emt 0:02:09]} a6 {[%emt 0:11:40]} 11. Qf3 {[%emt 0:06:39]} Re8 {[%emt 0:10:02]} 12. a3 {[%emt 0:03:37]} b6 {[%emt 0:08:25]} 13. N1d2 {[%emt 0:05:24]} Nc5 {[%emt 0:04:08]} 14. Be2 {[%emt 0:02:07]} Bb7 {[%emt 0:02:50]} 15. Qf2 {[%emt 0:00:27]} Rc8 {[%emt 0:07:56]} 16. Rac1 {[%emt 0:06:24]} Nxb3 {[%emt 0:05:20]} 17. Nxb3 {[%emt 0:01:29]} d4 {[%emt 0:07:03]} 18. Nxd4 {[%emt 0:02:22]} Nxd4 {[%emt 0:06:13]} 19. Bxd4 {[%emt 0:00:21]} Bc5 {[%emt 0:01:25]} 20. Rfd1 {[%emt 0:02:17]} Bxd4 {[%emt 0:01:10]} 21. Rxd4 {[%emt 0:00:48]} Qe7 {[%emt 0:01:50]} 22. Rd6 {[%emt 0:01:49]} b5 {[%emt 0:01:13]} 23. Rcd1 {[%emt 0:07:24]} Red8 {[%emt 0:02:18]} 24. Qb6 {[%emt 0:01:34]} Rxd6 {[%emt 0:01:50]} 25. Rxd6 {[%emt 0:00:39]} h6 {[%emt 0:00:56]} 26. Bd3 {[%emt 0:04:23]} g6 {[%emt 0:00:57]} 27. Qd4 {[%emt 0:02:03]} Kg7 {[%emt 0:02:19]} 28. Rd7 {[%emt 0:00:27]} Qc5 {[%emt 0:00:56]} 29. Qxc5 {[%emt 0:00:08]} Rxc5 {[%emt 0:00:07]} 30. Rxb7 {[%emt 0:00:26]} h5 {[%emt 0:00:24]} 31. Rb6 {[%emt 0:00:15]} a5 {[%emt 0:00:29]} 32. Rxb5 {[%emt 0:00:12]} Rxb5 {[%emt 0:00:09]} 33. Bxb5 {[%emt 0:00:08]} 1-0

[Event "46th GRE-chT Premier 2018"]
[Site "Rio Achaia"]
[Date "2018.07.10"]
[Round "1"]
[White "Mavridis, Athanasios"]
[Black "Gioutsos, Vasileios"]
[Result "1-0"]
[ECO "A39"]
[WhiteElo "1304"]
[BlackElo "1339"]
[Annotator "NA"]
[PlyCount "111"]
[EventDate "2018.07.10"]
[EventType "team-tourn"]
[EventCountry "GRE"]
[SourceTitle "playchess.com"]
[Source "ChessBase"]
[SourceQuality "1"]
[TimeControl "40/5400+30:1800+30"]

1. Nf3 {[%emt 0:00:00]} Nf6 {[%emt 0:00:00]} 2. c4 {[%emt 0:00:00]} c5 {[%emt 0:00:11]} 3. Nc3 {[%emt 0:00:39]} Nc6 {[%emt 0:00:24]} 4. g3 {[%emt 0:00:05]} g6 {[%emt 0:00:31]} 5. Bg2 {[%emt 0:00:05]} Bg7 {[%emt 0:00:56]} 6. O-O {[%emt 0:00:06]} O-O {[%emt 0:00:43]} 7. d4 {[%emt 0:00:04]} cxd4 {[%emt 0:01:24]} 8. Nxd4 {[%emt 0:00:07]} Qb6 {[%emt 0:04:30]} 9. Nxc6 {[%emt 0:06:54]} dxc6 {[%emt 0:01:00]} 10. Qb3 {[%emt 0:02:31]} Qc7 {[%emt 0:08:15]} 11. Bf4 {[%emt 0:06:45]} e5 {[%emt 0:03:15]} 12. Bg5 {[%emt 0:01:17]} Bf5 {[%emt 0:09:24]} 13. Rfd1 {[%emt 0:03:32]} Rad8 {[%emt 0:23:33]} 14. Qa3 {[%emt 0:02:30]} Rxd1+ {[%emt 0:02:58]} 15. Rxd1 {[%emt 0:00:11]} a6 {[%emt 0:02:52]} 16. c5 {[%emt 0:01:15]} Rd8 {[%emt 0:02:28]} 17. Rxd8+ {[%emt 0:01:54]} Qxd8 {[%emt 0:00:48]} 18. Qb3 {[%emt 0:00:26]} Qd7 {[%emt 0:03:38]} 19. Bxf6 {[%emt 0:07:56]} Bxf6 {[%emt 0:00:36]} 20. Be4 {[%emt 0:03:49]} Bh3 {[%emt 0:05:10]} 21. Qd1 {[%emt 0:00:20]} Qxd1+ {[%emt 0:00:49]} 22. Nxd1 {[%emt 0:00:05]} Be7 {[%emt 0:01:45]} 23. b4 {[%emt 0:00:12]} Be6 {[%emt 0:00:13]} 24. a3 {[%emt 0:02:01]} f5 {[%emt 0:00:33]} 25. Bc2 {[%emt 0:01:07]} Bc4 {[%emt 0:01:56]} 26. Bd3 {[%emt 0:00:13]} Bb3 {[%emt 0:00:14]} 27. Ne3 {[%emt 0:00:07]} Bd8 {[%emt 0:05:17]} 28. Bc4+ {[%emt 0:01:40]} Bxc4 {[%emt 0:00:08]} 29. Nxc4 {[%emt 0:00:04]} Bc7 {[%emt 0:00:10]} 30. f3 {[%emt 0:01:56]} Kf7 {[%emt 0:00:49]} 31. Kf2 {[%emt 0:00:34]} Ke6 {[%emt 0:03:06]} 32. e4 {[%emt 0:03:56]} h6 {[%emt 0:01:37]} 33. Ke3 {[%emt 0:01:12]} Bd8 {[%emt 0:01:50]} 34. a4 {[%emt 0:06:22]} Bc7 {[%emt 0:01:57]} 35. a5 {[%emt 0:03:19]} Bb8 {[%emt 0:01:35]} 36. exf5+ {[%emt 0:09:30]} gxf5 {[%emt 0:00:42]} 37. g4 {[%emt 0:00:46]} fxg4 {[%emt 0:02:13]} 38. fxg4 {[%emt 0:00:06]} e4 {[%emt 0:03:38]} 39. h3 {[%emt 0:00:41]} Bg3 {[%emt 0:00:24]} 40. Kxe4 {[%emt 0:00:00]} Be1 {[%emt 0:00:00]} 41. Nd6 {[%emt 0:02:04]} Bxb4 {[%emt 0:00:57]} 42. Nxb7 {[%emt 0:00:07]} Kd7 {[%emt 0:00:09]} 43. Kd4 {[%emt 0:00:51]} Kc7 {[%emt 0:00:10]} 44. Kc4 {[%emt 0:01:26]} Bd2 {[%emt 0:00:16]} 45. Nd6 {[%emt 0:01:32]} Bxa5 {[%emt 0:00:14]} 46. Nf7 {[%emt 0:00:35]} Bd2 {[%emt 0:00:20]} 47. h4 {[%emt 0:01:13]} a5 {[%emt 0:01:46]} 48. g5 {[%emt 0:01:06]} hxg5 {[%emt 0:00:08]} 49. hxg5 {[%emt 0:00:34]} Kd7 {[%emt 0:05:04]} 50. g6 {[%emt 0:03:41]} Ke7 {[%emt 0:00:29]} 51. Nd8 {[%emt 0:08:23]} Kf6 {[%emt 0:00:33]} 52. Nxc6 {[%emt 0:00:23]} Kxg6 {[%emt 0:00:27]} 53. Ne5+ {[%emt 0:00:48]} Kf6 {[%emt 0:00:47]} 54. c6 {[%emt 0:00:26]} a4 {[%emt 0:00:24]} 55. c7 {[%emt 0:00:26]} a3 {[%emt 0:00:08]} 56. c8=Q {[%emt 0:00:10] Ke6} 1-0

[Event "46th GRE-chT Premier 2018"]
[Site "Rio Achaia"]
[Date "2018.07.10"]
[Round "1"]
[White "Bouza, Mirto - Eleni"]
[Black "Tsouli, Rafailia"]
[Result "1/2-1/2"]
[ECO "C54"]
[WhiteElo "1299"]
[BlackElo "1327"]
[Annotator "NA"]
[PlyCount "112"]
[EventDate "2018.07.10"]
[EventType "team-tourn"]
[EventCountry "GRE"]
[SourceTitle "playchess.com"]
[Source "ChessBase"]
[SourceQuality "1"]
[TimeControl "40/5400+30:1800+30"]

1. e4 {[%emt 0:00:00]} e5 {[%emt 0:00:00]} 2. Nf3 {[%emt 0:00:00]} Nc6 {[%emt 0:00:00]} 3. Bc4 {[%emt 0:00:00]} Bc5 {[%emt 0:00:02]} 4. c3 {[%emt 0:00:13]} Nf6 {[%emt 0:00:14]} 5. d3 {[%emt 0:00:28]} d6 {[%emt 0:00:29]} 6. Bg5 {[%emt 0:02:23]} h6 {[%emt 0:02:30]} 7. Bh4 {[%emt 0:00:51]} g5 {[%emt 0:03:55]} 8. Bg3 {[%emt 0:00:20]} a6 {[%emt 0:01:57]} 9. Bb3 {[%emt 0:02:43]} Ba7 {[%emt 0:05:13]} 10. Nbd2 {[%emt 0:04:47]} Qe7 {[%emt 0:03:36]} 11. Nc4 {[%emt 0:16:23]} Be6 {[%emt 0:09:29]} 12. Qe2 {[%emt 0:10:35]} O-O-O {[%emt 0:07:44]} 13. O-O-O {[%emt 0:05:24]} Rhf8 {[%emt 0:20:00]} 14. Rhe1 {[%emt 0:04:17]} Nd7 {[%emt 0:02:17]} 15. d4 {[%emt 0:08:38]} exd4 {[%emt 0:01:29]} 16. cxd4 {[%emt 0:01:33]} Bg4 {[%emt 0:09:56]} 17. d5 {[%emt 0:16:50]} Nd4 {[%emt 0:06:28]} 18. Qd3 {[%emt 0:01:05]} Nc5 {[%emt 0:03:33]} 19. Qe3 {[%emt 0:04:02]} Ndxb3+ {[%emt 0:02:30]} 20. axb3 {[%emt 0:00:49]} Bxf3 {[%emt 0:05:27]} 21. gxf3 {[%emt 0:02:56]} Kb8 {[%emt 0:01:42]} 22. Qc3 {[%emt 0:02:57]} Nd7 {[%emt 0:01:52]} 23. e5 {[%emt 0:08:17]} dxe5 {[%emt 0:02:19]} 24. Nxe5 {[%emt 0:00:19]} Nxe5 {[%emt 0:00:56]} 25. Bxe5 {[%emt 0:00:59]} Qc5 {[%emt 0:02:26]} 26. Bg7 {[%emt 0:02:15]} Qxc3+ {[%emt 0:01:08]} 27. bxc3 {[%emt 0:00:03]} Rg8 {[%emt 0:00:16]} 28. Bf6 {[%emt 0:00:49]} Rde8 {[%emt 0:04:05]} 29. Rxe8+ {[%emt 0:01:18]} Rxe8 {[%emt 0:00:03]} 30. Rd2 {[%emt 0:01:12]} Kc8 {[%emt 0:01:44]} 31. c4 {[%emt 0:01:19]} Re1+ {[%emt 0:00:42]} 32. Kc2 {[%emt 0:00:03]} Rf1 {[%emt 0:00:08]} 33. Bg7 {[%emt 0:01:15]} h5 {[%emt 0:00:21]} 34. Bh6 {[%emt 0:00:20]} f6 {[%emt 0:01:15]} 35. Bg7 {[%emt 0:00:46]} f5 {[%emt 0:00:37]} 36. Bh6 {[%emt 0:00:32]} g4 {[%emt 0:00:33]} 37. fxg4 {[%emt 0:00:20]} hxg4 {[%emt 0:00:10]} 38. Be3 {[%emt 0:00:24]} Bb8 {[%emt 0:00:56]} 39. Bf4 {[%emt 0:00:33]} c6 {[%emt 0:00:41]} 40. Bg3 {[%emt 0:00:00]} f4 {[%emt 0:00:00]} 41. Bh4 {[%emt 0:01:43]} Rh1 {[%emt 0:10:23]} 42. d6 {[%emt 0:08:54]} Kd7 {[%emt 0:01:50]} 43. Bg5 {[%emt 0:01:09]} f3 {[%emt 0:04:40]} 44. Bf4 {[%emt 0:01:10]} Re1 {[%emt 0:00:59]} 45. c5 {[%emt 0:02:45]} Ba7 {[%emt 0:01:13]} 46. b4 {[%emt 0:00:53]} Re4 {[%emt 0:00:21]} 47. Be3 {[%emt 0:04:07]} Rxb4 {[%emt 0:00:23]} 48. Kc3 {[%emt 0:02:42]} Rb5 {[%emt 0:05:30]} 49. Rb2 {[%emt 0:06:47]} Rxb2 {[%emt 0:06:14]} 50. Kxb2 {[%emt 0:00:04]} Ke6 {[%emt 0:01:18]} 51. Kc3 {[%emt 0:00:22]} Kd7 {[%emt 0:01:56]} 52. Kb4 {[%emt 0:01:38]} Ke6 {[%emt 0:00:39]} 53. Ka5 {[%emt 0:00:52]} Kd7 {[%emt 0:00:21]} 54. Kb4 {[%emt 0:00:31]} Ke6 {[%emt 0:00:20]} 55. Ka5 {[%emt 0:00:22]} Kd7 {[%emt 0:00:22]} 56. Kb4 {[%emt 0:00:27]} Ke6 {[%emt 0:00:39]} 1/2-1/2

[Event "46th GRE-chT Premier 2018"]
[Site "Rio Achaia"]
[Date "2018.07.10"]
[Round "1"]
[White "Soukarie, Zorz"]
[Black "Stefanou, Konstantinos"]
[Result "0-1"]
[ECO "B49"]
[WhiteElo "1295"]
[BlackElo "1677"]
[Annotator "NA"]
[PlyCount "64"]
[EventDate "2018.07.10"]
[EventType "team-tourn"]
[EventCountry "GRE"]
[SourceTitle "playchess.com"]
[Source "ChessBase"]
[SourceQuality "1"]
[TimeControl "40/5400+30:1800+30"]

1. e4 {[%emt 0:00:00]} c5 {[%emt 0:00:00]} 2. Nf3 {[%emt 0:00:00]} e6 {[%emt 0:00:00]} 3. d4 {[%emt 0:00:00]} cxd4 {[%emt 0:00:13]} 4. Nxd4 {[%emt 0:00:00]} Nc6 {[%emt 0:00:09]} 5. Nc3 {[%emt 0:00:31]} Qc7 {[%emt 0:00:11]} 6. Be2 {[%emt 0:00:30]} a6 {[%emt 0:00:13]} 7. Be3 {[%emt 0:00:21]} d6 {[%emt 0:00:47]} 8. O-O {[%emt 0:00:13]} Nf6 {[%emt 0:00:07]} 9. a4 {[%emt 0:01:24]} Be7 {[%emt 0:03:24]} 10. Nb3 {[%emt 0:05:32]} O-O {[%emt 0:04:03]} 11. f4 {[%emt 0:00:49]} Bd7 {[%emt 0:25:02]} 12. Kh1 {[%emt 0:01:31]} Na5 {[%emt 0:08:38]} 13. Nxa5 {[%emt 0:04:06]} Qxa5 {[%emt 0:00:05]} 14. Ra3 {[%emt 0:02:22]} Bc6 {[%emt 0:03:39]} 15. b4 {[%emt 0:03:40]} Qc7 {[%emt 0:01:52]} 16. Qd4 {[%emt 0:02:10]} e5 {[%emt 0:04:58]} 17. Qd3 {[%emt 0:04:41]} Rfc8 {[%emt 0:05:42]} 18. Bf3 {[%emt 0:01:02]} Bd7 {[%emt 0:07:43]} 19. f5 {[%emt 0:02:39]} a5 {[%emt 0:05:49]} 20. bxa5 {[%emt 0:12:34]} d5 {[%emt 0:03:59]} 21. Bb6 {[%emt 0:00:19]} Qc4 {[%emt 0:00:30]} 22. Qxc4 {[%emt 0:00:09]} Rxc4 {[%emt 0:00:10]} 23. Rb3 {[%emt 0:00:36]} d4 {[%emt 0:00:28]} 24. Nb5 {[%emt 0:01:29]} Rxc2 {[%emt 0:01:27]} 25. Ra1 {[%emt 0:01:42]} Rac8 {[%emt 0:02:24]} 26. h3 {[%emt 0:00:23]} Ne8 {[%emt 0:01:50]} 27. Kh2 Bg5 28. Kh1 {[%emt 0:05:49]} Bf4 {[%emt 0:00:50]} 29. Rf1 {[%emt 0:00:15]} Rc1 {[%emt 0:01:23]} 30. Rb1 {[%emt 0:00:14]} R1c4 {[%emt 0:02:40]} 31. Ra1 {[%emt 0:00:06]} d3 {[%emt 0:00:57]} 32. Rfd1 {[%emt 0:00:24]} d2 {[%emt 0:00:24]} 0-1

[Event "46th GRE-chT Premier 2018"]
[Site "Rio Achaia"]
[Date "2018.07.10"]
[Round "1"]
[White "Poulopoulos, Ilias"]
[Black "Makris, Spyridon-Dionysios"]
[Result "0-1"]
[ECO "C55"]
[WhiteElo "1290"]
[BlackElo "1799"]
[Annotator "NA"]
[PlyCount "108"]
[EventDate "2018.07.10"]
[EventType "team-tourn"]
[EventCountry "GRE"]
[SourceTitle "playchess.com"]
[Source "ChessBase"]
[SourceQuality "1"]
[TimeControl "40/5400+30:1800+30"]

1. e4 {[%emt 0:00:00]} e5 {[%emt 0:00:00]} 2. Nf3 {[%emt 0:00:00]} Nc6 {[%emt 0:00:00]} 3. Bc4 {[%emt 0:00:00]} Nf6 {[%emt 0:00:00]} 4. d3 {[%emt 0:00:05]} Be7 {[%emt 0:00:00]} 5. c3 {[%emt 0:00:20]} O-O {[%emt 0:00:24]} 6. Nbd2 {[%emt 0:00:35]} d6 {[%emt 0:00:08]} 7. Bb3 {[%emt 0:00:40]} Na5 {[%emt 0:00:11]} 8. Bc2 {[%emt 0:00:11]} c5 {[%emt 0:00:04]} 9. Nf1 {[%emt 0:00:30]} Nc6 {[%emt 0:00:43]} 10. Ng3 {[%emt 0:00:51]} h6 {[%emt 0:00:35]} 11. O-O {[%emt 0:00:53]} Re8 {[%emt 0:00:23]} 12. Re1 {[%emt 0:02:00]} Bf8 {[%emt 0:01:57]} 13. h3 {[%emt 0:04:43]} d5 {[%emt 0:02:43]} 14. Qe2 {[%emt 0:01:25]} Be6 {[%emt 0:05:39]} 15. Nh2 {[%emt 0:10:52]} Qc8 {[%emt 0:22:25]} 16. Nh5 {[%emt 0:05:39]} Nxh5 {[%emt 0:01:03]} 17. Qxh5 {[%emt 0:00:09]} g6 {[%emt 0:00:24]} 18. Qh4 {[%emt 0:02:08]} Qd8 {[%emt 0:00:02]} 19. Qg3 {[%emt 0:02:26]} d4 {[%emt 0:05:57]} 20. c4 {[%emt 0:02:56]} Bg7 {[%emt 0:02:35]} 21. a3 {[%emt 0:07:18]} a6 {[%emt 0:03:59]} 22. f4 {[%emt 0:04:36]} exf4 {[%emt 0:00:05]} 23. Bxf4 {[%emt 0:00:14]} Bd7 {[%emt 0:02:29]} 24. Ng4 {[%emt 0:06:18]} Bxg4 {[%emt 0:00:09]} 25. Qxg4 {[%emt 0:02:25]} Ne5 {[%emt 0:01:43]} 26. Qe2 {[%emt 0:04:39]} Qd7 {[%emt 0:01:29]} 27. b4 {[%emt 0:06:21]} Rec8 {[%emt 0:02:20]} 28. Rab1 {[%emt 0:03:10]} b5 {[%emt 0:04:35]} 29. Bxe5 {[%emt 0:06:01]} Bxe5 {[%emt 0:00:05]} 30. Bb3 {[%emt 0:02:00]} Qd6 {[%emt 0:12:07]} 31. Rf1 {[%emt 0:02:11]} Rc7 {[%emt 0:01:56]} 32. Qf3 {[%emt 0:03:03]} Raa7 {[%emt 0:00:31]} 33. Kh1 {[%emt 0:02:18]} cxb4 {[%emt 0:02:53]} 34. axb4 {[%emt 0:00:36]} Qxb4 {[%emt 0:00:56]} 35. cxb5 {[%emt 0:03:18]} Qxb5 {[%emt 0:00:03]} 36. Bc4 {[%emt 0:02:13]} Qd7 {[%emt 0:05:00]} 37. Rb6 {[%emt 0:01:37]} Kg7 {[%emt 0:08:52]} 38. Bxa6 {[%emt 0:02:26]} Qd8 {[%emt 0:01:38]} 39. Rfb1 {[%emt 0:03:44]} Rc3 {[%emt 0:03:46]} 40. R6b5 {[%emt 0:00:00]} Qc7 {[%emt 0:00:00]} 41. Rf1 {[%emt 0:12:10]} Rc1 {[%emt 0:02:58]} 42. Rxe5 {[%emt 0:01:35]} Rxf1+ {[%emt 0:00:09]} 43. Qxf1 {[%emt 0:00:07]} Qxe5 {[%emt 0:00:07]} 44. Bc4 {[%emt 0:00:07]} h5 {[%emt 0:04:13]} 45. Kg1 {[%emt 0:01:10]} h4 {[%emt 0:00:31]} 46. Qf3 {[%emt 0:01:02]} Rb7 {[%emt 0:01:00]} 47. Kf1 {[%emt 0:00:37]} Qa5 {[%emt 0:00:34]} 48. Qd1 {[%emt 0:01:35]} Qc3 {[%emt 0:00:38]} 49. Kf2 {[%emt 0:00:47]} Rb2+ {[%emt 0:00:47]} 50. Kf3 {[%emt 0:00:24]} g5 {[%emt 0:02:19]} 51. g3 {[%emt 0:01:33]} hxg3 {[%emt 0:01:52]} 52. Kxg3 {[%emt 0:00:06]} Qd2 {[%emt 0:00:35]} 53. Qf1 {[%emt 0:01:00]} Qh2+ {[%emt 0:00:09]} 54. Kf3 {[%emt 0:00:07]} Qf4# 0-1

[Event "46th GRE-chT Premier 2018"]
[Site "Rio Achaia"]
[Date "2018.07.10"]
[Round "1"]
[White "Papadopoulou, Marilena"]
[Black "Fertaki, Eleftheria"]
[Result "1/2-1/2"]
[ECO "B40"]
[WhiteElo "1275"]
[BlackElo "1139"]
[Annotator "NA"]
[PlyCount "83"]
[EventDate "2018.07.10"]
[EventType "team-tourn"]
[EventCountry "GRE"]
[SourceTitle "playchess.com"]
[Source "ChessBase"]
[SourceQuality "1"]
[TimeControl "40/5400+30:1800+30"]

1. e4 {[%emt 0:00:00]} c5 {[%emt 0:00:00]} 2. Nf3 {[%emt 0:00:00]} e6 {[%emt 0:00:00]} 3. d4 {[%emt 0:00:00]} cxd4 {[%emt 0:00:00]} 4. Nxd4 {[%emt 0:00:00]} Nf6 {[%emt 0:00:07]} 5. Nc3 {[%emt 0:00:02]} Nc6 {[%emt 0:00:29]} 6. Nb3 {[%emt 0:00:12]} Be7 {[%emt 0:03:17]} 7. Bd3 {[%emt 0:00:30]} O-O {[%emt 0:00:42]} 8. O-O {[%emt 0:01:03]} d5 {[%emt 0:02:19]} 9. exd5 {[%emt 0:01:45]} Nxd5 {[%emt 0:00:52]} 10. Nxd5 {[%emt 0:02:25]} Qxd5 {[%emt 0:00:27]} 11. Qe2 {[%emt 0:04:57]} Bf6 {[%emt 0:13:38]} 12. c3 {[%emt 0:08:14]} Rb8 {[%emt 0:15:33]} 13. Bf4 {[%emt 0:04:45]} e5 {[%emt 0:16:11]} 14. Rad1 {[%emt 0:06:41]} Qe6 {[%emt 0:02:59]} 15. Be3 {[%emt 0:04:40]} b6 {[%emt 0:06:57]} 16. Be4 {[%emt 0:10:08]} Bb7 {[%emt 0:07:30]} 17. Qh5 {[%emt 0:04:00]} g6 {[%emt 0:01:25]} 18. Qf3 {[%emt 0:00:30]} Nd8 {[%emt 0:10:09]} 19. Bh6 {[%emt 0:03:33]} Bxe4 {[%emt 0:00:52]} 20. Qxe4 {[%emt 0:00:19]} Re8 {[%emt 0:00:38]} 21. Rd3 {[%emt 0:04:12]} Bg7 {[%emt 0:02:16]} 22. Qh4 {[%emt 0:05:07]} Bxh6 {[%emt 0:02:06]} 23. Qxh6 {[%emt 0:00:22]} Qc4 {[%emt 0:00:48]} 24. Rh3 {[%emt 0:01:31]} Qe6 {[%emt 0:06:34]} 25. Qxh7+ {[%emt 0:01:08]} Kf8 {[%emt 0:00:07]} 26. Re1 {[%emt 0:03:38]} Qf6 {[%emt 0:00:55]} 27. Qh8+ {[%emt 0:01:41]} Ke7 {[%emt 0:01:12]} 28. Rxe5+ {[%emt 0:01:49]} Ne6 {[%emt 0:00:04]} 29. Qxf6+ {[%emt 0:00:48]} Kxf6 {[%emt 0:00:07]} 30. Rhe3 {[%emt 0:01:20]} Red8 {[%emt 0:00:35]} 31. h3 {[%emt 0:01:29]} Rd1+ {[%emt 0:00:23]} 32. Re1 {[%emt 0:01:26]} Rd7 {[%emt 0:00:20]} 33. g4 {[%emt 0:02:10]} Rd3 {[%emt 0:00:37]} 34. R5e3 {[%emt 0:00:52]} Rbd8 {[%emt 0:00:41]} 35. Rxd3 {[%emt 0:00:58]} Rxd3 {[%emt 0:00:04]} 36. Re3 {[%emt 0:01:25]} Rd1+ {[%emt 0:01:24]} 37. Kg2 {[%emt 0:01:09]} Rb1 {[%emt 0:00:54]} 38. Rf3+ {[%emt 0:03:55]} Kg7 {[%emt 0:00:31]} 39. Nd4 {[%emt 0:03:07]} Rxb2 {[%emt 0:02:32]} 40. Nxe6+ {[%emt 0:00:00]} fxe6 {[%emt 0:00:00]} 41. a3 {[%emt 0:03:39]} Ra2 {[%emt 0:03:09]} 42. c4 {[%emt 0:05:13]} 1/2-1/2